bitfinex-derivatives/quotes_ETHF0:USTF0_20250614
["timestamp","ask_amount","ask_price","bid_price","bid_amount"]
[1749907085012,0.78666,2541.4,2541.3,0.79255982]
[1749907085208,0.78666,2541.4,2541.3,0.00589982]
[1749907085506,0.78666,2541.4,2541.3,0.79258982]
[1749907085712,0.78665,2541.5,2541.4,0.78665]
[1749907090916,5.0,2541.5,2540.5,2.33094168]
[1749907091217,0.78688,2540.7,2540.6,0.7869]
[1749907091519,3.2078,2540.8,2540.5,0.6811]
[1749907091714,0.78689,2540.7,2540.5,1.46802]
[1749907091912,0.78691,2540.6,2540.5,0.6811]
[1749907092117,3.2078,2540.8,2540.1,3.2078]
[1749907092320,2.85731942,2540.7,2540.2,0.78702]
[1749907092518,0.78699,2540.4,2540.1,3.2078]
[1749907092718,0.78699,2540.4,2540.2,0.78703]
[1749907093119,0.787,2540.3,2540.2,0.78703]
[1749907093322,0.787,2540.3,2540.1,3.99484]
[1749907093822,0.787,2540.3,2540.2,0.78703]
[1749907094427,0.78698,2540.4,2540.3,0.78698]
[1749907094818,0.78698,2540.4,2540.2,0.78701]
[1749907095324,0.78698,2540.4,2540.3,0.787]
[1749907095525,0.00589982,2540.5,2540.4,0.78697]
[1749907095824,0.00589982,2540.5,2540.3,0.78698]
[1749907096216,0.78697,2540.4,2540.3,0.78698]
[1749907100827,0.00589982,2540.5,2540.2,2.03232]
[1749907101019,0.00589982,2540.5,2540.4,0.78697]
[1749907101819,0.79283982,2540.5,2540.4,0.78697]
[1749907102627,0.787,2540.3,2540.2,0.78702]
[1749907104125,0.78703,2540.2,2540.1,3.2078]
[1749907104329,0.78703,2540.2,2540.1,3.99485]
[1749907105520,0.78702,2540.3,2540.1,3.99485]
[1749907105732,0.6495,2540.4,2540.1,3.99485]
[1749907106028,0.78703,2540.2,2540.1,3.99485]
[1749907106627,0.78706,2540.1,2540.0,0.6811]
[1749907106829,1.96752,2540.3,2539.8,3.99494]
[1749907106830,0.78712,2539.9,2539.8,3.99494]
[1749907107225,0.78712,2539.9,2539.8,3.2078]
[1749907107427,0.78712,2539.9,2539.7,1.3021]
[1749907107428,0.78716,2539.8,2539.7,0.6403]
[1749907107835,0.78722,2539.6,2539.5,3.99504]
[1749907108029,0.78722,2539.6,2539.5,3.8481]
[1749907108533,0.78722,2539.6,2539.5,4.63535]
[1749907109033,0.78722,2539.6,2539.5,3.8481]
[1749907109930,0.78722,2539.6,2539.5,0.6403]
[1749907111026,0.78728,2539.4,2539.3,0.6618]
[1749907111932,0.78728,2539.4,2539.3,1.44911]
[1749907112330,0.78728,2539.4,2539.3,0.6618]
[1749907112835,0.78731,2539.3,2539.2,3.2078]
[1749907113541,0.78731,2539.3,2539.2,3.99514]
[1749907113831,0.78729,2539.4,2539.3,0.78729]
[1749907114136,6.282,2539.7,2539.2,3.2078]
[1749907114434,0.78731,2539.3,2539.2,3.2078]
[1749907115231,0.78731,2539.3,2539.2,3.99514]
[1749907115424,0.78731,2539.3,2539.2,3.2078]
[1749907116935,0.78737,2539.1,2539.0,7.5761]
[1749907117137,0.78737,2539.1,2539.0,1.2941]
[1749907117933,0.78737,2539.1,2539.0,0.6725]
[1749907121533,5.17624,2539.1,2538.6,6.283]
[1749907121837,5.17624,2539.1,2538.5,3.863]
[1749907121838,0.78753,2538.6,2538.5,3.863]
[1749907122430,0.78762,2538.4,2538.3,0.7876]
[1749907122927,0.78762,2538.4,2538.3,1.4206]
[1749907124045,0.78757,2538.5,2538.4,0.78757]
[1749907124337,0.78759,2538.4,2538.3,0.633]
[1749907126032,0.78759,2538.4,2537.9,3.2078]
[1749907126033,3.2078,2538.5,2537.9,3.2078]
[1749907126232,0.78771,2538.0,2537.9,3.8708]
[1749907126437,0.78771,2538.0,2537.9,4.65854]
[1749907126641,0.78771,2538.0,2537.9,3.8708]
[1749907127134,0.6817,2538.3,2537.9,3.8708]
[1749907127336,0.78769,2538.1,2538.0,0.7877]
[1749907127841,0.78766,2538.2,2538.1,0.78766]
[1749907128040,0.78768,2538.2,2537.9,3.8708]
[1749907128347,0.78769,2538.1,2538.0,0.78769]
[1749907128533,0.78767,2538.2,2538.0,0.78769]
[1749907128837,0.78767,2538.2,2537.9,3.8708]
[1749907129045,1.46933,2538.3,2537.9,3.8708]
[1749907129337,0.78759,2538.4,2538.3,0.7876]
[1749907129541,3.99538,2538.5,2538.4,0.78759]
[1749907129739,0.78759,2538.4,2538.3,0.7876]
[1749907129938,3.2078,2538.5,2537.9,5.84014]
[1749907129939,0.78764,2538.3,2538.2,0.78764]
[1749907130341,0.78761,2538.4,2538.3,0.78762]
[1749907131244,0.78765,2538.3,2538.2,0.78764]
[1749907131434,0.78765,2538.2,2538.1,2.13296]
[1749907131634,0.78764,2538.3,2538.2,0.78764]
[1749907133239,0.78765,2538.2,2538.1,2.13296]
[1749907133540,3.2078,2538.5,2538.2,0.78765]
[1749907133541,0.78764,2538.3,2538.2,0.78765]
[1749907135044,0.78774,2537.9,2537.8,0.6856]
[1749907135240,5.83644,2538.2,2537.6,0.78783]
[1749907135438,0.78784,2537.6,2537.5,5.1117]
[1749907135639,0.78784,2537.6,2537.5,3.8476]
[1749907135837,0.78784,2537.6,2537.5,4.63547]
[1749907136842,0.78783,2537.7,2537.6,0.78781]
[1749907138041,0.78782,2537.7,2537.6,0.78781]
[1749907139246,1.44248982,2537.8,2537.7,0.78781]
[1749907139745,1.44248982,2537.8,2537.5,5.111]
[1749907140149,1.44248982,2537.8,2537.6,0.78782]
[1749907140349,0.7878,2537.7,2537.6,0.78782]
[1749907140748,0.65469982,2537.8,2537.7,0.7878]
[1749907141249,0.65469982,2537.8,2537.5,5.111]
[1749907141453,0.78784,2537.6,2537.5,5.89885]
[1749907141850,0.78782,2537.7,2537.6,0.78781]
[1749907142153,0.79368982,2537.8,2537.7,0.7878]
[1749907142548,0.00589982,2537.8,2537.7,0.7878]
[1749907142846,0.79366982,2537.8,2537.7,0.7878]
[1749907143550,0.78782,2537.7,2537.6,0.78781]
[1749907144251,0.79369982,2537.8,2537.7,0.78781]
[1749907145549,0.00589982,2537.8,2537.7,0.78781]
[1749907147059,3.2078,2538.2,2538.1,0.78768]
[1749907148252,3.2078,2538.2,2538.1,1.46738]
[1749907152276,3.99545,2538.2,2538.1,0.78768]
[1749907152477,0.78768,2538.1,2538.0,1.41259]
[1749907153977,3.99547,2538.2,2538.1,0.78768]
[1749907154689,3.2078,2538.2,2538.1,0.78768]
[1749907155071,3.99545,2538.2,2538.1,0.78768]
[1749907155680,3.2078,2538.2,2537.9,0.69089982]
[1749907155880,0.78771,2538.0,2537.9,24.16089982]
[1749907157082,1.4161,2538.1,2538.0,0.78771]
[1749907157273,3.99547,2538.2,2538.1,0.78768]
[1749907157480,3.2078,2538.2,2538.1,0.78768]
[1749907158075,0.00589982,2538.4,2538.3,0.78762]
[1749907158877,0.00589982,2538.4,2538.1,5.53874168]
[1749907159080,0.78771,2538.0,2537.9,0.00589982]
[1749907159673,0.78771,2538.0,2537.9,0.79363982]
[1749907160379,0.78771,2538.0,2537.9,0.00589982]
[1749907160586,2.98268976,2538.0,2537.9,0.00589982]
[1749907161685,2.98268976,2538.0,2537.9,0.79363982]
[1749907162281,0.94637976,2538.0,2537.9,0.79363982]
[1749907162485,1.4442,2538.1,2538.0,0.78771]
[1749907162786,2.39064134,2538.1,2538.0,0.78771]
[1749907162982,0.6565,2538.1,2538.0,0.78771]
[1749907163184,3.99545,2538.2,2538.1,0.78768]
[1749907163489,0.78768,2538.1,2538.0,1.4609]
[1749907163982,3.8477,2538.2,2537.9,0.00589982]
[1749907163983,0.78771,2538.0,2537.9,0.79362982]
[1749907164377,0.7877,2538.1,2538.0,0.7877]
[1749907164578,0.78771,2538.0,2537.9,0.00589982]
[1749907164783,3.03297316,2538.0,2537.9,0.00589982]
[1749907165780,4.63537,2538.2,2538.1,0.78768]
[1749907165984,5.5819277,2538.2,2538.1,0.78768]
[1749907166889,0.78768,2538.1,2538.0,1.46089]
[1749907167382,4.63537,2538.2,2538.1,0.78768]
[1749907167588,5.58199521,2538.2,2538.1,0.78768]
[1749907168291,2.37419521,2538.2,2538.1,0.78768]
[1749907168585,1.58652521,2538.2,2538.1,0.78768]
[1749907168791,2.37417521,2538.2,2538.1,0.78768]
[1749907169691,1.58652521,2538.2,2538.1,0.78768]
[1749907170086,0.00589982,2538.4,2538.3,0.78762]
[1749907170286,0.95268136,2538.4,2538.2,0.78763]
[1749907170594,0.78763,2538.3,2538.2,0.78763]
[1749907171495,0.78767,2538.2,2538.1,0.78766]
[1749907171996,0.78771,2538.0,2537.9,4.7196025]
[1749907172292,0.00589982,2538.4,2538.0,0.78771]
[1749907172293,1.41439,2538.1,2538.0,0.78771]
[1749907173585,0.78771,2538.0,2537.9,3.21369982]
[1749907173789,1.73382076,2538.0,2537.9,0.00589982]
[1749907173994,1.73382076,2538.0,2537.9,0.79363982]
[1749907174399,1.73382076,2538.0,2537.9,0.00589982]
[1749907175390,3.00212076,2538.0,2537.9,0.00589982]
[1749907177393,0.78787,2537.5,2537.4,1.47658]
[1749907178592,0.78784,2537.7,2537.6,0.78783]
[1749907178797,1.73363808,2537.7,2537.6,0.78783]
[1749907179494,0.94579808,2537.7,2537.6,3.99563]
[1749907179697,0.78774,2537.9,2537.7,0.78778]
[1749907179889,1.2887,2538.0,2537.4,1.9911]
[1749907180196,0.78783,2537.7,2537.6,0.78782]
[1749907180791,1.3016,2537.9,2537.4,8.2661]
[1749907180792,0.78786,2537.6,2537.5,0.78785]
[1749907182697,0.78787,2537.5,2537.4,0.6887]
[1749907182891,1.46147,2537.5,2537.4,0.6887]
[1749907183300,1.46147,2537.5,2537.4,1.4766]
[1749907184998,0.6736,2537.5,2537.4,1.4766]
[1749907185499,1.46147,2537.5,2537.4,1.4766]
[1749907185998,0.6736,2537.5,2537.4,1.4766]
[1749907186401,1.46147,2537.5,2537.4,1.4766]
[1749907186598,0.6736,2537.5,2537.4,1.4766]
[1749907187604,1.46147,2537.5,2537.4,1.4766]
[1749907187905,0.7879,2537.4,2537.3,3.99572]
[1749907188097,0.7879,2537.4,2537.3,3.2078]
[1749907188494,0.7879,2537.4,2537.3,3.99573]
[1749907189093,9.19101591,2537.4,2537.0,3.2078]
[1749907189299,0.78808,2536.8,2536.7,0.7881]
[1749907189496,0.00591156,2537.0,2536.9,0.78805]
[1749907190000,0.78812,2536.7,2536.6,3.2078]
[1749907190600,6.276,2536.9,2536.8,0.78808]
[1749907191206,6.276,2536.9,2536.6,3.2078]
[1749907191406,0.78811,2536.8,2536.7,0.78811]
[1749907192005,0.78812,2536.7,2536.6,3.2078]
[1749907192306,1.42092,2536.7,2536.6,3.2078]
[1749907192993,2.70882,2536.7,2536.6,3.99595]
[1749907193200,0.00591156,2537.0,2536.6,3.2078]
[1749907193400,6.27891156,2537.0,2536.9,0.78805]
[1749907195105,6.27891156,2537.0,2536.8,0.6238]
[1749907195411,0.00591156,2537.0,2536.9,0.78805]
[1749907195603,0.00591156,2537.0,2536.9,3.99585]
[1749907196807,0.00591156,2537.0,2536.9,5.35815]
[1749907198011,0.00591156,2537.0,2536.9,3.99585]
[1749907200808,0.79393156,2537.0,2536.9,3.99585]
[1749907201216,0.00591156,2537.0,2536.9,0.78805]
[1749907201409,0.79393156,2537.0,2536.9,0.78805]
[1749907201609,0.00591156,2537.0,2536.9,0.78805]
[1749907202002,0.79393156,2537.0,2536.9,0.78805]
[1749907202207,0.00591156,2537.0,2536.6,3.2078]
[1749907202402,1.45528,2536.9,2536.8,0.78808]
[1749907202906,0.6672,2536.9,2536.8,0.78808]
[1749907204009,0.00591156,2537.0,2536.9,0.78805]
[1749907205319,0.00591156,2537.0,2536.9,3.99585]
[1749907207615,3.2078,2537.5,2537.4,0.7879]
[1749907209511,3.99567,2537.5,2537.4,0.7879]
[1749907210211,0.78793,2537.3,2537.2,0.00591156]
[1749907211503,0.78793,2537.3,2537.2,0.79387156]
[1749907211910,0.78793,2537.3,2537.2,0.00591156]
[1749907212318,1.7356441,2537.3,2537.2,0.00591156]
[1749907213020,1.7356441,2537.3,2537.2,0.79387156]
[1749907214715,0.78793,2537.3,2537.2,0.79387156]
[1749907214918,1.42962,2537.4,2537.3,0.78793]
[1749907215118,2.37782096,2537.4,2537.3,0.78793]
[1749907216411,0.78793,2537.3,2537.2,0.79385156]
[1749907216619,1.73613096,2537.3,2537.2,0.79385156]
[1749907218312,5.84500813,2537.7,2537.6,0.78784]
[1749907218511,6.7931094,2537.7,2537.6,0.78784]
[1749907218722,7.5809094,2537.7,2537.6,0.78784]
[1749907218919,6.63280813,2537.7,2537.6,0.78784]
[1749907219314,0.79371156,2537.7,2537.6,0.78784]
[1749907219525,0.00591156,2537.7,2537.6,0.78784]
[1749907219709,0.00591156,2537.7,2537.6,1.43494]
[1749907220334,0.00591156,2537.7,2537.6,2.78354]
[1749907225328,0.79371156,2537.7,2537.6,0.6471]
[1749907225525,0.78784,2537.6,2537.5,3.2078]
[1749907225724,1.43004,2537.6,2537.5,3.2078]
[1749907225931,2.75484,2537.6,2537.5,3.2078]
[1749907226230,0.00591156,2537.7,2537.6,0.78784]
[1749907227534,0.79371156,2537.7,2537.6,0.78784]
[1749907227718,0.00591156,2537.7,2537.6,0.78784]
[1749907228336,0.00591156,2537.7,2537.6,2.73084]
[1749907238033,3.2078,2538.4,2538.3,0.78762]
[1749907238341,4.79110204,2538.4,2538.3,0.78762]
[1749907239134,3.8444,2538.4,2538.3,0.78762]
[1749907239435,4.632,2538.4,2538.3,0.78762]
[1749907239635,0.78765,2538.2,2538.1,0.6566]
[1749907239838,0.78773,2538.0,2537.9,0.78772]
[1749907240131,1.96905,2538.3,2538.0,0.78771]
[1749907240132,2.1165,2538.1,2538.0,0.78771]
[1749907240331,1.3288,2538.1,2538.0,0.78771]
[1749907240733,2.11648,2538.1,2538.0,0.78771]
[1749907241036,0.78772,2538.0,2537.9,0.78772]
[1749907241230,0.6646,2538.0,2537.9,0.78772]
[1749907244628,1.45231,2538.0,2537.9,0.78772]
[1749907244927,0.6646,2538.0,2537.9,0.78772]
[1749907246036,1.45231,2538.0,2537.9,0.78772]
[1749907246236,2.3997453,2538.0,2537.9,0.78772]
[1749907247035,3.0228453,2538.0,2537.9,0.78772]
[1749907247833,2.2351353,2538.0,2537.9,0.78772]
[1749907248226,1.6120353,2538.0,2537.9,0.78772]
[1749907253544,2.3997453,2538.0,2537.9,0.78772]
[1749907253846,1.6120353,2538.0,2537.9,0.78772]
[1749907255542,0.9474353,2538.0,2537.9,0.78772]
[1749907255747,3.8798,2538.4,2538.3,0.78762]
[1749907255947,4.83154795,2538.4,2538.3,0.78762]
[1749907256444,0.00591156,2538.6,2538.5,0.78756]
[1749907256645,0.00591156,2538.6,2538.5,6.32630168]
[1749907258053,0.00591156,2538.6,2538.5,3.99536]
[1749907259848,0.00591156,2538.6,2538.5,34.39836]
[1749907265557,0.00591156,2538.6,2538.5,35.64616]
[1749907267765,3.2078,2539.1,2539.0,0.7874]
[1749907267970,0.6444,2539.3,2539.2,0.78734]
[1749907271170,0.00591156,2539.5,2539.4,0.78728]
[1749907271370,0.63321156,2539.5,2539.4,0.78728]
[1749907271570,1.42046156,2539.5,2539.4,0.78728]
[1749907271971,0.63321156,2539.5,2539.4,0.78728]
[1749907272869,0.63321156,2539.5,2539.4,3.99508]
[1749907274772,0.00591156,2539.5,2539.4,3.99508]
[1749907277671,0.00591156,2539.5,2539.1,0.6786]
[1749907277881,0.78731,2539.4,2539.3,0.7873]
[1749907278071,2.14431,2539.4,2539.3,0.78731]
[1749907282580,3.32522,2539.4,2539.0,0.00591156]
[1749907282882,0.78737,2539.1,2539.0,0.79329156]
[1749907283983,0.78737,2539.1,2539.0,0.00591156]
[1749907284880,0.78737,2539.1,2539.0,0.79331156]
[1749907285776,2.02996,2539.2,2539.1,0.78737]
[1749907285978,0.00591156,2539.5,2539.2,0.78734]
[1749907286178,1.7360091,2539.4,2539.3,0.78731]
[1749907286682,0.9487291,2539.4,2539.3,0.78731]
[1749907286877,0.68991156,2539.5,2539.4,0.78728]
[1749907287080,2.42637603,2539.5,2539.4,0.78728]
[1749907288886,0.7873,2539.4,2539.3,0.78728]
[1749907289079,1.73706173,2539.4,2539.3,0.78728]
[1749907292989,1.73704173,2539.4,2539.3,0.78728]
[1749907293188,1.73704173,2539.4,2539.2,0.6273]
[1749907293383,0.78736,2539.2,2539.1,0.78735]
[1749907293587,0.78737,2539.1,2539.0,0.00591156]
[1749907293782,4.47151699,2539.1,2539.0,0.00591156]
[1749907295887,9.47151699,2539.1,2539.0,0.00591156]
[1749907296989,0.78752,2538.6,2538.5,3.2078]
[1749907297198,8.22876,2538.7,2538.2,3.2078]
[1749907297380,3.37688,2538.5,2538.4,0.78759]
[1749907297580,4.32702699,2538.5,2538.4,0.78759]
[1749907297894,0.78762,2538.3,2538.2,4.00134156]
[1749907300187,0.7876,2538.4,2538.3,0.7876]
[1749907300386,0.78762,2538.3,2538.2,4.00134156]
[1749907300596,0.78762,2538.3,2538.2,0.79354156]
[1749907302490,0.78762,2538.3,2538.2,0.00591156]
[1749907302692,7.04862,2538.3,2538.2,0.00591156]
[1749907308601,1.96919,2538.2,2537.6,3.2078]
[1749907308804,0.78779,2537.8,2537.7,1.41258]
[1749907310193,0.78775,2537.9,2537.8,0.78774]
[1749907311500,0.79364156,2538.0,2537.9,0.78774]
[1749907312000,0.78777,2537.9,2537.8,0.78775]
[1749907312695,0.79364156,2538.0,2537.9,0.78774]
[1749907313900,0.78777,2537.9,2537.8,0.78776]
[1749907318801,0.78777,2537.9,2537.6,3.2078]
[1749907318802,6.258,2537.9,2537.6,3.2078]
[1749907319007,0.7878,2537.8,2537.7,0.78777]
[1749907321109,7.04575,2537.9,2537.8,0.78774]
[1749907321908,0.78775,2537.9,2537.8,0.78774]
[1749907322108,0.00591156,2538.0,2537.9,0.78774]
[1749907322305,0.79362156,2538.0,2537.9,0.78774]
[1749907322810,0.00591156,2538.0,2537.9,0.78774]
[1749907327708,0.00591156,2538.0,2537.9,8.11868168]
[1749907327906,0.00591156,2538.0,2537.9,9.39038168]
[1749907329504,0.00591156,2538.0,2537.9,4.39038168]
[1749907332309,9.4658,2538.5,2538.4,0.78759]
[1749907332613,10.41672309,2538.5,2538.4,0.78759]
[1749907332812,11.20428309,2538.5,2538.4,0.78759]
[1749907333009,7.99648309,2538.5,2538.4,0.78759]
[1749907334611,7.20892309,2538.5,2538.4,0.78759]
[1749907335113,7.20892309,2538.5,2538.4,1.42939]
[1749907335513,0.95092309,2538.5,2538.4,1.42939]
[1749907336407,1.73848309,2538.5,2538.4,0.6418]
[1749907336616,0.78762,2538.3,2538.2,0.78764]
[1749907337910,1.73777363,2538.3,2538.2,0.78764]
[1749907338113,0.78761,2538.4,2538.3,0.78758]
[1749907338310,0.78757,2538.5,2538.4,0.78759]
[1749907338613,1.73764796,2538.5,2538.4,0.78759]
[1749907339612,0.95007796,2538.5,2538.4,0.78759]
[1749907339810,0.00591156,2538.7,2538.6,0.78752]
[1749907340216,0.95570611,2538.7,2538.6,0.78752]
[1749907340714,1.74319611,2538.7,2538.6,0.78752]
[1749907340911,0.95570611,2538.7,2538.6,0.78752]
[1749907341317,0.78752,2538.6,2538.5,2.10143]
[1749907341517,1.73731455,2538.6,2538.5,2.10143]
[1749907342107,0.94979455,2538.6,2538.5,2.10143]
[1749907343717,1.73731455,2538.6,2538.5,2.10143]
[1749907344119,1.73731455,2538.6,2538.5,0.78753]
[1749907345017,0.78759,2538.4,2538.3,4.6515]
[1749907345218,0.78768,2538.1,2538.0,3.99549]
[1749907345419,0.78768,2538.1,2538.0,3.2078]
[1749907345619,0.78768,2538.1,2538.0,0.78771]
[1749907345920,2.68455,2538.3,2538.2,0.78765]
[1749907346213,3.63420917,2538.3,2538.2,0.78765]
[1749907346618,0.78767,2538.2,2538.1,0.78766]
[1749907346811,1.73732917,2538.2,2538.1,0.78766]
[1749907348521,0.94965917,2538.2,2538.1,0.78766]
[1749907348715,0.6466,2538.5,2538.4,0.78759]
[1749907348921,1.59609508,2538.5,2538.4,0.78759]
[1749907349915,0.94949508,2538.5,2538.4,0.78759]
[1749907352625,0.78753,2538.6,2538.5,0.78756]
[1749907352824,1.73644938,2538.6,2538.5,0.78756]
[1749907356225,1.73699722,2538.6,2538.5,0.78756]
[1749907356625,0.94946722,2538.6,2538.5,0.78756]
[1749907357323,0.00591156,2538.7,2538.6,0.78752]
[1749907357822,0.00591156,2538.7,2538.6,3.99532]
[1749907358325,0.00591156,2538.7,2538.6,5.30082]
[1749907358925,0.78732,2539.3,2539.2,0.78734]
[1749907359128,1.73781204,2539.3,2539.2,0.78734]
[1749907360221,0.95049204,2539.3,2539.2,0.78734]
[1749907361426,0.6687,2539.4,2539.3,0.78731]
[1749907361724,1.61795975,2539.4,2539.3,0.78731]
[1749907361926,2.40523975,2539.4,2539.3,0.78731]
[1749907362322,0.6687,2539.4,2539.3,0.78731]
[1749907365224,1.45598,2539.4,2539.3,0.78731]
[1749907365430,1.456,2539.4,2539.3,0.78731]
[1749907366129,0.6687,2539.4,2539.3,0.78731]
[1749907366325,1.45598,2539.4,2539.3,0.78731]
[1749907368330,0.6687,2539.4,2539.3,0.78731]
[1749907369631,1.45598,2539.4,2539.3,0.78731]
[1749907373734,0.6687,2539.4,2539.3,0.78731]
[1749907374529,1.45598,2539.4,2539.3,0.78731]
[1749907376632,0.6687,2539.4,2539.3,0.78731]
[1749907377231,0.00591156,2539.5,2539.4,0.78728]
[1749907377625,1.56e-06,2539.5,2539.4,5.78728]
[1749907377826,1.56e-06,2539.5,2539.4,33.45952168]
[1749907378137,1.56e-06,2539.5,2539.4,31.12858]
[1749907378434,1.56e-06,2539.5,2539.4,71.92858]
[1749907379025,1.56e-06,2539.5,2539.4,47.82958]
[1749907379229,1.56e-06,2539.5,2539.4,78.17258]
[1749907382541,1.56e-06,2539.5,2539.4,80.51453554]
[1749907383135,1.56e-06,2539.5,2539.4,56.41753554]
[1749907383334,1.56e-06,2539.5,2539.4,78.16858]
[1749907384946,1.56e-06,2539.5,2539.4,73.16758]
[1749907386242,1.56e-06,2539.5,2539.4,32.36758]
[1749907386636,1.56e-06,2539.5,2539.4,2.02958]
[1749907386837,1.56e-06,2539.5,2539.4,0.78728]
[1749907387037,1.56e-06,2539.5,2539.4,24.87828]
[1749907387247,0.64450156,2539.5,2539.4,24.87828]
[1749907387445,0.64450156,2539.5,2539.4,0.78728]
[1749907387647,0.64450156,2539.5,2539.4,24.87828]
[1749907388847,0.64450156,2539.5,2539.4,0.78728]
[1749907389649,1.43175156,2539.5,2539.4,0.78728]
[1749907389847,3.31055156,2539.5,2539.4,0.78728]
[1749907390151,0.78731,2539.3,2539.2,3.99513]
[1749907390344,0.78731,2539.3,2539.2,3.2078]
[1749907391346,0.78731,2539.3,2539.2,3.99514]
[1749907392550,2.031,2539.4,2539.3,0.78731]
[1749907393659,1.2437,2539.4,2539.0,0.00591156]
[1749907393949,0.78737,2539.1,2539.0,0.79328156]
[1749907395358,0.78737,2539.1,2539.0,0.00591156]
[1749907396057,0.78737,2539.1,2539.0,0.79331156]
[1749907396258,0.78737,2539.1,2539.0,0.00591156]
[1749907396860,1.73541147,2539.1,2539.0,0.00591156]
[1749907397160,3.77251147,2539.1,2539.0,0.00591156]
[1749907398066,3.77251147,2539.1,2538.6,3.2078]
[1749907398067,0.78749,2538.7,2538.6,3.2078]
[1749907398263,0.78749,2538.7,2538.6,3.99532]
[1749907398462,0.78749,2538.7,2538.6,3.2078]
[1749907398662,0.78753,2538.6,2538.5,0.78756]
[1749907398863,0.78758,2538.5,2538.4,0.78756]
[1749907399066,1.41428,2538.5,2538.4,0.78756]
[1749907401054,0.78759,2538.4,2538.3,3.2078]
[1749907401555,2.03289,2538.4,2538.3,3.2078]
[1749907402367,2.03289,2538.4,2538.3,3.99542]
[1749907402960,2.03289,2538.4,2538.3,3.2078]
[1749907403761,0.78762,2538.3,2538.2,0.00591156]
[1749907403967,8.27992,2538.3,2538.2,0.00591156]
[1749907407361,0.78777,2537.8,2537.7,3.9956]
[1749907407566,1.303,2538.2,2537.7,3.2078]
[1749907407765,0.78777,2537.9,2537.8,0.78776]
[1749907407961,0.78772,2538.0,2537.9,0.78771]
[1749907411876,0.00591156,2538.2,2538.1,0.78768]
[1749907412174,0.00591156,2538.2,2538.1,3.99548]
[1749907412562,0.00591156,2538.2,2538.1,5.93828]
[1749907412770,3.2078,2538.7,2538.6,0.78753]
[1749907412968,3.99529,2538.7,2538.6,0.78753]
[1749907413164,0.78754,2538.6,2538.5,0.78754]
[1749907413368,0.78754,2538.6,2538.5,1.43614]
[1749907413970,0.78754,2538.6,2538.5,1.43616]
[1749907414274,0.78754,2538.6,2538.5,0.6486]
[1749907414977,0.78754,2538.6,2538.5,1.43616]
[1749907415275,0.78754,2538.6,2538.5,0.6486]
[1749907416172,0.78754,2538.6,2538.5,1.43616]
[1749907416878,0.78754,2538.6,2538.5,0.6486]
[1749907417779,0.78754,2538.6,2538.5,1.43616]
[1749907418180,0.78754,2538.6,2538.5,0.6486]
[1749907418677,0.78754,2538.6,2538.5,1.43616]
[1749907419275,0.78754,2538.6,2538.5,0.6486]
[1749907419984,0.78754,2538.6,2538.5,1.43616]
[1749907420873,0.78754,2538.6,2538.5,0.6486]
[1749907421079,0.78765,2538.3,2538.2,0.78763]
[1749907421384,0.78765,2538.3,2538.2,1.43163]
[1749907422374,0.78765,2538.3,2538.2,0.644]
[1749907423880,0.78765,2538.2,2538.1,4.62705]
[1749907424086,0.78765,2538.2,2538.1,3.8394]
[1749907424287,0.78765,2538.2,2538.1,4.62708]
[1749907425883,0.78765,2538.2,2538.1,3.8394]
[1749907426076,0.78765,2538.2,2538.1,4.62708]
[1749907426282,1.73921823,2538.2,2538.1,4.62708]
[1749907427589,1.73921823,2538.2,2538.1,1.41928]
[1749907428785,0.95156823,2538.2,2537.9,0.6505]
[1749907429086,0.78771,2538.0,2537.9,1.43821]
[1749907431287,1.73983741,2538.0,2537.9,0.6505]
[1749907431491,0.78774,2537.9,2537.8,3.99557]
[1749907431693,0.78769,2538.2,2538.1,0.78765]
[1749907431886,0.95204975,2538.3,2538.2,0.78765]
[1749907432192,1.7396929,2538.3,2538.2,0.78765]
[1749907432585,1.7396929,2538.3,2538.2,1.42635]
[1749907434785,1.7396929,2538.3,2538.2,0.6387]
[1749907435993,1.7396929,2538.3,2538.2,1.42635]
[1749907437387,6.243,2538.4,2538.3,0.78762]
[1749907437587,7.19507355,2538.4,2538.3,2.77402]
[1749907437786,0.95207355,2538.4,2538.3,2.77402]
[1749907437987,0.78757,2538.5,2538.4,0.78759]
[1749907438286,1.73958838,2538.5,2538.4,0.78759]
[1749907440884,0.78759,2538.4,2538.3,0.6234]
[1749907441193,0.78762,2538.3,2538.2,0.6387]
[1749907441390,0.78762,2538.3,2538.2,1.42635]
[1749907441788,0.9521954,2538.3,2538.2,1.42635]
[1749907441988,0.78761,2538.4,2538.2,1.42635]
[1749907441989,0.78761,2538.4,2538.3,0.78762]
[1749907442188,1.73959139,2538.4,2538.3,0.78762]
[1749907443197,0.78762,2538.3,2538.2,1.42633]
[1749907444187,1.73966459,2538.3,2538.2,1.42633]
[1749907444393,0.95204459,2538.3,2538.2,1.42633]
[1749907444595,0.7876,2538.4,2538.3,0.78762]
[1749907445190,1.73965636,2538.4,2538.3,0.78762]
[1749907445995,0.95205636,2538.4,2538.3,0.78762]
[1749907446192,1.73964636,2538.4,2538.3,0.78762]
[1749907447792,0.95205636,2538.4,2538.3,0.78762]
[1749907448093,0.78756,2538.6,2538.5,0.78754]
[1749907448293,1.73975601,2538.6,2538.5,0.78754]
[1749907451893,0.78759,2538.5,2538.4,0.78757]
[1749907452094,1.73978601,2538.5,2538.4,0.78757]
[1749907452291,0.78759,2538.4,2538.3,2.1045]
[1749907452502,1.73978601,2538.4,2538.3,2.1045]
[1749907455402,0.95219601,2538.4,2538.3,2.1045]
[1749907455705,1.73978601,2538.4,2538.3,2.1045]
[1749907456902,0.95219601,2538.4,2538.3,2.1045]
[1749907457800,1.73978601,2538.4,2538.3,2.1045]
[1749907459002,0.78762,2538.3,2538.2,1.42634]
[1749907459309,2.37065073,2538.3,2538.2,1.42634]
[1749907460805,0.95173073,2538.3,2538.2,0.78764]